bitfinex-derivatives/quotes_ETHF0:USTF0_20250416
["timestamp","ask_amount","ask_price","bid_price","bid_amount"]
[1744797427972,3.80226,1570.1,1570.0,1.27398]
[1744797428371,3.80226,1570.1,1570.0,2.92458]
[1744797430471,1.27398,1570.0,1569.9,2.15045536]
[1744797430671,2.95828,1570.0,1569.9,3.88095536]
[1744797431074,1.6843,1570.0,1569.9,3.88095536]
[1744797432076,2.95828,1570.0,1569.9,3.88095536]
[1744797432977,1.6843,1570.0,1569.9,2.15045536]
[1744797433382,2.95828,1570.0,1569.9,0.00955536]
[1744797433581,6.16608,1570.0,1569.9,0.00955536]
[1744797433783,6.97468,1570.0,1569.9,0.00955536]
[1744797435681,6.97468,1570.0,1569.9,1.28361536]
[1744797438578,11.97468,1570.0,1569.9,0.00955536]
[1744797438885,6.97468,1570.0,1569.9,0.00955536]
[1744797440189,6.97468,1570.0,1569.9,1.28361536]
[1744797440986,6.97468,1570.0,1569.9,0.00955536]
[1744797444988,5.7007,1570.0,1569.9,1.28361536]
[1744797445191,4.8921,1570.0,1569.9,1.28361536]
[1744797445385,4.8921,1570.0,1569.9,3.00351536]
[1744797445890,6.16608,1570.0,1569.9,3.00351536]
[1744797446684,6.16608,1570.0,1569.9,1.28361536]
[1744797447390,6.16608,1570.0,1569.9,0.00955536]
[1744797450688,6.16608,1570.0,1569.9,1.28361536]
[1744797450890,6.16608,1570.0,1569.9,0.00955536]
[1744797452589,6.16608,1570.0,1569.9,1.28361536]
[1744797453187,6.16608,1570.0,1569.9,0.00955536]
[1744797457093,2.95828,1570.0,1569.9,0.00955536]
[1744797457489,6.16608,1570.0,1569.9,0.00955536]
[1744797461507,6.16608,1570.0,1569.9,1.28361536]
[1744797461904,6.16608,1570.0,1569.9,3.91971536]
[1744797462210,3.2078,1570.0,1569.9,8.91971536]
[1744797463910,3.2078,1570.0,1569.9,3.91971536]
[1744797464609,1.27397,1570.1,1570.0,1.27398]
[1744797464798,1.2739,1570.1,1570.0,6.09804]
[1744797465004,1.74945536,1570.2,1570.1,1.2739]
[1744797465204,3.02334536,1570.2,1570.1,3.7883]
[1744797465912,6.23114536,1570.2,1570.1,0.8617]
[1744797466111,6.23114536,1570.2,1570.1,2.1356]
[1744797467205,6.23114536,1570.2,1570.1,0.8617]
[1744797468514,6.23114536,1570.2,1570.1,2.1356]
[1744797470213,6.23107536,1570.2,1570.1,3.7644]
[1744797473015,6.23107536,1570.2,1570.1,2.1356]
[1744797475118,1.2739,1570.1,1570.0,3.01512]
[1744797475309,4.6537,1570.1,1570.0,1.27392]
[1744797477920,1.7049,1570.1,1570.0,1.27392]
[1744797478119,4.49123536,1570.2,1570.1,1.2739]
[1744797478320,6.17593536,1570.2,1570.1,1.2739]
[1744797478519,6.17593536,1570.2,1570.1,2.9138]
[1744797479523,6.17593536,1570.2,1570.1,1.2739]
[1744797480921,6.17593536,1570.2,1570.1,2.9296]
[1744797481721,3.21735536,1570.2,1570.1,2.9296]
[1744797483523,4.49117536,1570.2,1570.1,2.9296]
[1744797483725,6.18487536,1570.2,1570.1,2.9296]
[1744797484024,1.2739,1570.1,1570.0,1.27393]
[1744797484218,2.9676,1570.1,1570.0,1.27393]
[1744797485722,1.6937,1570.1,1570.0,1.27393]
[1744797485918,1.6937,1570.1,1570.0,2.92193]
[1744797486116,3.21735536,1570.2,1570.1,1.2739]
[1744797486316,4.49117536,1570.2,1570.1,2.9219]
[1744797486823,1.27398,1570.0,1569.9,7.43197536]
[1744797487420,2.94218,1570.0,1569.9,7.43197536]
[1744797488719,6.14998,1570.0,1569.9,7.43197536]
[1744797489429,1.6682,1570.0,1569.9,7.43197536]
[1744797490227,2.94218,1570.0,1569.9,7.43197536]
[1744797490922,1.6682,1570.0,1569.9,7.43197536]
[1744797491629,2.94218,1570.0,1569.9,7.43197536]
[1744797492928,6.14998,1570.0,1569.9,5.68857536]
[1744797493130,6.14998,1570.0,1569.9,0.00955536]
[1744797495232,1.27423,1569.7,1569.6,9.72022871]
[1744797495532,1.27423,1569.7,1569.6,8.44598871]
[1744797495828,6.27423,1569.7,1569.6,8.44598871]
[1744797496031,12.42083,1569.7,1569.6,8.44598871]
[1744797496327,1.27447,1569.4,1569.3,9.72048871]
[1744797496629,1.27444,1569.5,1569.4,1.2744]
[1744797496831,3.88484,1569.5,1569.4,1.2744]
[1744797497528,1.27447,1569.4,1569.3,49.24598871]
[1744797497838,7.07917,1569.4,1569.3,8.44598871]
[1744797498331,12.07917,1569.4,1569.3,8.44598871]
[1744797498531,7.07917,1569.4,1569.3,8.44598871]
[1744797499232,16.48217,1569.4,1569.3,8.44598871]
[1744797499629,1.27455,1569.3,1569.2,0.00955536]
[1744797499830,2.93855,1569.3,1569.2,0.00955536]
[1744797502736,2.93855,1569.3,1569.2,1.28418536]
[1744797503334,2.93855,1569.3,1569.2,0.00955536]
[1744797503821,2.93855,1569.3,1569.2,1.28418536]
[1744797504330,1.664,1569.3,1569.2,3.82998536]
[1744797504633,1.664,1569.3,1569.2,4.71238536]
[1744797505130,5.34418536,1569.4,1569.2,4.71238536]
[1744797505131,0.00955536,1569.4,1569.2,3.43775536]
[1744797505433,0.00955536,1569.4,1569.3,3.01435]
[1744797505830,0.00955536,1569.4,1569.3,8.01435]
[1744797507233,0.8205,1569.8,1569.7,1.27423]
[1744797507533,13.70335119,1569.9,1569.8,1.27414]
[1744797507534,12.20235119,1569.9,1569.8,1.27414]
[1744797508232,13.47641119,1569.9,1569.8,1.27414]
[1744797508437,13.47641119,1569.9,1569.8,3.04734]
[1744797509934,2.98086,1569.9,1569.8,3.04734]
[1744797510134,1.27414,1569.8,1569.7,3.03097]
[1744797510437,2.92504,1569.8,1569.7,3.03097]
[1744797511229,1.27423,1569.7,1569.6,5.67825]
[1744797511433,3.81993,1569.7,1569.6,5.67831]
[1744797513933,2.5457,1569.7,1569.6,5.67831]
[1744797514138,3.81993,1569.7,1569.6,5.67831]
[1744797515744,7.02773,1569.7,1569.6,4.404]
[1744797515935,7.02773,1569.7,1569.6,5.67831]
[1744797516140,3.81993,1569.7,1569.6,5.67831]
[1744797516946,3.81993,1569.7,1569.6,4.404]
[1744797517138,1.27439,1569.5,1569.4,7.3814]
[1744797517443,2.90177,1569.6,1569.5,1.27439]
[1744797517630,2.90177,1569.6,1569.5,2.94439]
[1744797518239,1.6274,1569.6,1569.5,2.94439]
[1744797518445,1.2743,1569.7,1569.6,1.27431]
[1744797518742,2.9017,1569.7,1569.6,1.27431]
[1744797520145,2.9017,1569.7,1569.6,2.99371]
[1744797520643,6.1095,1569.7,1569.6,2.99371]
[1744797520842,2.9017,1569.7,1569.6,1.7194]
[1744797521039,1.27431,1569.6,1569.5,1.7194]
[1744797521244,1.27439,1569.5,1569.4,2.97842]
[1744797521445,2.15949,1569.5,1569.4,2.97842]
[1744797521638,3.87509,1569.5,1569.4,2.97842]
[1744797522342,7.08289,1569.5,1569.4,2.97842]
[1744797522743,7.08289,1569.5,1569.4,1.704]
[1744797522940,7.08289,1569.5,1569.4,2.97847]
[1744797523142,3.87509,1569.5,1569.4,2.97847]
[1744797523444,7.08289,1569.5,1569.4,4.60327]
[1744797523645,3.87509,1569.5,1569.4,4.60327]
[1744797524748,0.68979,1569.5,1569.4,4.60327]
[1744797524948,0.68979,1569.5,1569.4,3.76137]
[1744797525246,1.96418,1569.5,1569.4,3.76137]
[1744797526247,5.17198,1569.5,1569.4,3.76137]
[1744797527151,1.96418,1569.5,1569.4,3.76137]
[1744797527551,0.68979,1569.5,1569.4,3.76137]
[1744797527754,1.27438,1569.6,1569.5,1.27439]
[1744797527945,3.03828,1569.6,1569.5,3.01639]
[1744797530756,1.7639,1569.6,1569.5,3.01639]
[1744797531158,3.2078,1569.7,1569.6,1.27431]
[1744797531455,3.2078,1569.7,1569.6,3.82371]
[1744797531855,4.48203,1569.7,1569.6,3.82371]
[1744797532154,6.14833,1569.7,1569.6,3.82371]
[1744797533060,4.8741,1569.7,1569.6,3.82371]
[1744797533249,6.14833,1569.7,1569.6,3.82371]
[1744797533850,6.14833,1569.7,1569.6,1.27431]
[1744797534051,6.99333,1569.7,1569.6,1.27431]
[1744797535453,6.14837,1569.7,1569.6,1.27431]
[1744797535754,6.14837,1569.7,1569.6,3.03361]
[1744797536756,4.8741,1569.7,1569.6,3.03361]
[1744797536956,3.2078,1569.7,1569.6,3.03361]
[1744797537458,4.48203,1569.7,1569.6,3.03361]
[1744797538158,1.27423,1569.7,1569.6,3.03361]
[1744797541259,3.03812,1569.8,1569.7,1.27423]
[1744797541447,3.03812,1569.8,1569.7,2.09753]
[1744797541758,3.03812,1569.8,1569.7,4.61223]
[1744797541954,1.7639,1569.8,1569.7,4.61223]
[1744797542255,3.2078,1569.9,1569.8,1.27414]
[1744797542459,3.2078,1569.9,1569.8,2.91444]
[1744797544758,4.48186,1569.9,1569.8,2.91444]
[1744797545059,6.95116,1569.9,1569.8,2.91444]
[1744797545452,6.95116,1569.9,1569.8,1.27414]
[1744797550565,1.27414,1569.8,1569.7,4.64045]
[1744797550758,2.96164,1569.8,1569.7,4.64045]
[1744797551157,1.6875,1569.8,1569.7,4.64045]
[1744797553462,2.96164,1569.8,1569.7,4.64045]
[1744797553666,1.27447,1569.5,1569.4,8.44598871]
[1744797554166,5.6646,1569.6,1569.5,1.27439]
[1744797554366,5.6646,1569.6,1569.5,3.82899]
[1744797554664,6.93891,1569.6,1569.5,3.82899]
[1744797557568,1.27439,1569.5,1569.4,9.72038871]
[1744797557768,2.90899,1569.5,1569.4,9.72038871]
[1744797557970,2.90899,1569.5,1569.4,1.2744]
[1744797561772,6.11679,1569.5,1569.4,1.2744]
[1744797562573,4.8424,1569.5,1569.2,0.00955536]
[1744797562875,4.48235,1569.3,1569.2,0.00955536]
[1744797563169,1.27471,1569.1,1569.0,8.44598871]
[1744797563373,4.48251,1569.1,1569.0,8.44598871]
[1744797563868,6.94751,1569.1,1569.0,8.44598871]
[1744797566677,11.94751,1569.1,1569.0,8.44598871]
[1744797569579,6.94751,1569.1,1569.0,8.44598871]
[1744797571984,1.27479,1569.0,1568.9,0.00955536]
[1744797572182,2.89449,1569.0,1568.9,0.00955536]
[1744797581889,7.29349,1569.0,1568.9,0.00955536]
[1744797582985,7.29349,1569.0,1568.9,1.28443536]
[1744797582986,2.89449,1569.0,1568.9,1.28443536]
[1744797583191,1.27479,1569.0,1568.9,2.92113536]
[1744797583389,1.27479,1569.0,1568.9,3.77893536]
[1744797583690,1.27479,1569.0,1568.9,44.57893536]
[1744797586584,1.27479,1569.0,1568.9,43.30405536]
[1744797586888,1.27479,1569.0,1568.9,44.57893536]
[1744797587692,1.27479,1569.0,1568.9,40.80955536]
[1744797587992,1.27479,1569.0,1568.9,42.08443536]
[1744797588488,1.27479,1569.0,1568.9,43.82513536]
[1744797588991,1.27479,1569.0,1568.9,42.55025536]
[1744797589691,3.00289,1569.0,1568.9,42.55025536]
[1744797590286,1.2752,1568.6,1568.4,3.2078]
[1744797590484,1.2752,1568.6,1568.5,4.64904]
[1744797590786,1.2752,1568.6,1568.5,45.44904]
[1744797590989,1.2752,1568.6,1568.5,44.1739]
[1744797591792,4.483,1568.6,1568.5,44.1739]
[1744797591983,6.1374,1568.6,1568.5,3.3739]
[1744797592181,4.483,1568.6,1568.5,3.3739]
[1744797592385,4.483,1568.6,1568.5,45.4491]
[1744797593293,1.2752,1568.6,1568.5,45.4491]
[1744797593497,4.483,1568.6,1568.5,44.1739]
[1744797593894,4.483,1568.6,1568.5,41.6376]
[1744797594997,4.483,1568.6,1568.5,0.8376]
[1744797595197,6.2319,1568.6,1568.5,0.8376]
[1744797596700,1.2752,1568.6,1568.5,2.1128]
[1744797596894,1.2752,1568.6,1568.5,3.8683]
[1744797597403,1.2752,1568.6,1568.5,2.5931]
[1744797597891,4.483,1568.6,1568.5,2.5931]
[1744797598195,1.2752,1568.6,1568.5,2.5931]
[1744797598700,4.483,1568.6,1568.5,2.5931]
[1744797599302,1.2752,1568.6,1568.5,2.5931]
[1744797600592,1.2752,1568.5,1568.4,40.80637022]
[1744797600799,1.2752,1568.5,1568.4,43.24637022]
[1744797601402,2.9325,1568.5,1568.4,40.80637022]
[1744797601703,3.7537,1568.5,1568.4,40.80637022]
[1744797602297,1.27528,1568.4,1568.3,0.8115]
[1744797602495,6.20438,1568.4,1568.3,0.8115]
[1744797602696,1.27553,1568.1,1568.0,0.847]
[1744797603196,4.48333,1568.1,1568.0,41.647]
[1744797603698,6.20463,1568.1,1568.0,41.647]
[1744797604803,1.27553,1568.1,1568.0,41.647]
[1744797605004,4.48333,1568.1,1568.0,43.4217]
[1744797605808,6.09803,1568.1,1568.0,43.4217]
[1744797606003,2.89023,1568.1,1568.0,43.4217]
[1744797606306,6.09803,1568.1,1568.0,43.4217]
[1744797607307,2.89023,1568.1,1568.0,43.4217]
[1744797607801,6.09803,1568.1,1568.0,43.4217]
[1744797608204,2.89023,1568.1,1568.0,43.4217]
[1744797608791,1.27553,1568.1,1568.0,43.4217]
[1744797608998,1.28506536,1568.2,1568.1,1.27553]
[1744797609198,1.28506536,1568.2,1568.1,2.87723]
[1744797609898,1.28506536,1568.2,1568.1,1.6017]
[1744797610096,1.28506536,1568.2,1568.1,2.87723]
[1744797610404,1.28506536,1568.2,1568.1,1.6017]
[1744797610704,1.28506536,1568.2,1568.1,43.67723]
[1744797611102,1.28506536,1568.2,1568.1,42.4017]
[1744797611699,1.28506536,1568.2,1568.1,43.67723]
[1744797613805,1.28506536,1568.2,1568.1,42.4017]
[1744797614309,2.90726536,1568.2,1568.1,43.67723]
[1744797614502,0.00955536,1568.2,1568.1,46.88503]
[1744797614901,0.00955536,1568.2,1568.1,51.88503]
[1744797615101,1.27526,1568.5,1568.4,1.27528]
[1744797615505,4.4829,1568.7,1568.3,6.922]
[1744797615810,5.49028311,1568.8,1568.7,1.27504]
[1744797616211,5.49028311,1568.8,1568.7,42.07504]
[1744797616410,5.49028311,1568.8,1568.7,43.72744]
[1744797616906,0.00955536,1568.9,1568.8,1.27496]
[1744797617103,0.00955536,1568.9,1568.8,2.92736]
[1744797618414,0.00955536,1568.9,1568.8,43.72736]
[1744797621329,1.66295536,1568.9,1568.8,43.72736]
[1744797622128,2.93783536,1568.9,1568.8,43.72736]
[1744797622327,1.66295536,1568.9,1568.8,43.72736]
[1744797622528,0.00955536,1568.9,1568.8,43.72736]
[1744797622825,4.0945,1569.4,1569.0,6.37375]
[1744797623027,5.86872311,1569.5,1569.4,1.27447]
[1744797623229,4.21532311,1569.5,1569.4,5.66947]
[1744797623728,5.86872311,1569.5,1569.4,5.66947]
[1744797624230,4.21532311,1569.5,1569.4,5.66947]
[1744797624628,4.90815536,1569.6,1569.5,1.27439]
[1744797624828,4.90815536,1569.6,1569.5,3.03699]
[1744797625029,1.70035536,1569.6,1569.5,3.03699]
[1744797625328,1.70035536,1569.6,1569.5,3.91189]
[1744797625727,6.18246536,1569.6,1569.5,3.91189]
[1744797626332,4.90815536,1569.6,1569.5,3.91189]
[1744797626633,1.70035536,1569.6,1569.5,3.91189]
[1744797627337,0.00955536,1569.6,1569.5,3.91189]
[1744797627534,0.00955536,1569.6,1569.5,4.78159]
[1744797631242,1.28386536,1569.6,1569.5,2.14929]
[1744797631441,3.05066536,1569.6,1569.5,2.14929]
[1744797631629,1.27439,1569.5,1569.4,7.37604536]
[1744797631832,3.04119,1569.5,1569.4,0.00955536]
[1744797632028,8.04119,1569.5,1569.4,0.00955536]
[1744797632339,3.04119,1569.5,1569.4,1.28402536]
[1744797633441,3.04119,1569.5,1569.4,0.00955536]
[1744797633941,3.04119,1569.5,1569.4,1.28402536]
[1744797634238,1.7668,1569.5,1569.4,1.28402536]
[1744797635941,3.04119,1569.5,1569.4,1.28402536]
[1744797636344,1.7668,1569.5,1569.4,1.28402536]
[1744797636544,1.7668,1569.5,1569.4,2.10192536]
[1744797636843,1.7668,1569.5,1569.4,3.87292536]
[1744797637238,1.69975536,1569.6,1569.5,1.27439]
[1744797637436,1.69975536,1569.6,1569.5,3.04539]
[1744797637839,0.00955536,1569.6,1569.5,7.43839]
[1744797638143,0.00955536,1569.6,1569.5,8.32369]
[1744797639045,3.2078,1569.8,1569.7,1.27423]
[1744797639546,4.48194,1569.8,1569.7,2.14803]
[1744797639746,1.27425,1569.7,1569.6,1.27423]
[1744797639944,1.6765,1569.7,1569.6,1.27423]
[1744797641046,3.21735536,1569.8,1569.7,1.27423]
[1744797641247,3.21735536,1569.8,1569.7,2.14803]
[1744797641447,3.21735536,1569.8,1569.7,3.75983]
[1744797642639,0.8348,1570.0,1569.7,7.4856]
[1744797642849,1.6223,1570.1,1570.0,1.27398]
[1744797643046,4.9161,1570.3,1570.2,1.27382]
[1744797643345,6.5384,1570.3,1570.1,6.8848]
[1744797643649,1.2739,1570.1,1570.0,40.8]
[1744797643837,4.4817,1570.1,1570.0,40.8]
[1744797644251,4.4817,1570.1,1570.0,42.07398]
[1744797644449,4.4817,1570.1,1570.0,40.8]
[1744797645244,1.27406,1569.9,1569.8,5.66608]
[1744797645445,1.2742,1569.8,1569.7,1.2742]
[1744797645656,2.9863,1569.8,1569.7,42.0742]
[1744797648543,1.2742,1569.8,1569.7,42.0742]
[1744797648743,4.48174,1570.1,1570.0,1.27398]
[1744797649147,3.2078,1570.1,1570.0,1.27398]
[1744797649350,4.4817,1570.1,1570.0,1.27398]
[1744797649947,3.2078,1570.1,1570.0,1.27398]
[1744797650342,1.7097,1570.2,1570.1,1.2739]
[1744797650547,0.8624,1570.2,1570.1,1.2739]
[1744797651450,1.2739,1570.1,1570.0,1.27392]
[1744797651751,6.39258,1570.1,1569.7,41.6362]
[1744797651956,1.27414,1569.8,1569.7,40.8]
[1744797652455,2.09014,1569.8,1569.7,42.07423]
[1744797654548,2.09014,1569.8,1569.7,40.8]
[1744797655152,1.27439,1569.5,1569.4,1.28397536]
[1744797655353,1.27437,1569.6,1569.5,1.27437]
[1744797655654,1.27439,1569.5,1569.4,40.80955536]
[1744797655856,5.30349,1569.5,1569.4,40.80955536]
[1744797656152,5.30349,1569.5,1569.4,42.08402536]
[1744797657659,2.09569,1569.5,1569.4,40.80955536]
[1744797657953,2.09569,1569.5,1569.4,42.08402536]
[1744797659258,5.30349,1569.5,1569.4,42.08402536]
[1744797659449,2.09569,1569.5,1569.4,42.08402536]
[1744797659949,5.30349,1569.5,1569.4,42.08402536]
[1744797660549,2.09569,1569.5,1569.4,42.08402536]
[1744797660956,5.30349,1569.5,1569.4,42.08402536]
[1744797661356,0.8213,1569.5,1569.4,42.08402536]
[1744797661547,0.8213,1569.5,1569.4,43.69972536]
[1744797662041,0.00955536,1569.6,1569.5,1.27439]
[1744797662245,0.00955536,1569.6,1569.5,3.73849]
[1744797662748,1.28386536,1569.6,1569.5,3.73849]
[1744797663058,0.00955536,1569.6,1569.5,3.73849]
[1744797667953,1.27439,1569.5,1569.4,40.80955536]
[1744797668152,3.00079,1569.5,1569.4,0.00955536]
[1744797672159,1.27463,1569.2,1569.1,9.72069871]
[1744797672656,1.27463,1569.2,1569.1,50.52069871]
[1744797672957,2.4466,1569.3,1569.1,50.52069871]
[1744797672958,3.72121,1569.3,1569.2,1.27463]
[1744797673159,2.11951,1569.3,1569.2,1.27463]
[1744797673361,1.27463,1569.2,1569.1,43.82180536]
[1744797673551,1.27463,1569.2,1569.1,40.80955536]
[1744797673752,1.27463,1569.2,1569.1,42.08426536]
[1744797674254,4.48243,1569.2,1569.1,42.08426536]
[1744797674963,2.1195,1569.3,1569.2,1.27463]
[1744797675558,4.48234,1569.4,1569.3,1.27455]
[1744797675761,4.48234,1569.4,1569.3,2.95805]
[1744797676066,3.2078,1569.4,1569.3,2.95805]
[1744797676265,4.48227,1569.4,1569.3,2.95805]
[1744797677866,1.27445,1569.5,1569.4,1.27447]
[1744797679962,10.57262536,1569.6,1569.5,1.27439]
[1744797680162,3.21735536,1569.6,1569.5,1.27439]
[1744797680367,0.00955536,1569.6,1569.5,1.27439]
[1744797680566,0.00955536,1569.6,1569.5,2.91249]
[1744797681168,4.49166536,1569.6,1569.5,2.91249]
[1744797682969,0.00955536,1569.6,1569.5,2.91249]
[1744797687766,0.00955536,1569.6,1569.5,7.91249]
[1744797689064,0.00955536,1569.6,1569.5,2.91249]
[1744797690064,1.64175536,1569.6,1569.5,2.91249]
[1744797693669,0.00955536,1569.6,1569.5,2.91249]
[1744797696069,1.62495536,1569.6,1569.5,2.91249]
[1744797696974,2.89926536,1569.6,1569.5,1.27439]
[1744797697179,1.27439,1569.5,1569.4,1.27441]
[1744797697376,3.76759,1569.5,1569.4,1.27441]
[1744797697872,2.4932,1569.5,1569.4,1.27441]
[1744797698267,2.4932,1569.5,1569.4,2.98041]
[1744797698568,3.76759,1569.5,1569.4,1.27441]
[1744797701367,2.4932,1569.5,1569.4,1.27441]
[1744797701575,2.4932,1569.5,1569.4,2.89621]
[1744797701874,3.76759,1569.5,1569.4,2.89621]
[1744797702672,1.6745,1569.5,1569.4,2.89621]
[1744797702869,2.94889,1569.5,1569.4,2.89621]
[1744797703370,1.6745,1569.5,1569.4,2.89621]
[1744797703669,2.94889,1569.5,1569.4,2.89621]
[1744797703975,1.6745,1569.5,1569.4,2.89621]
[1744797705284,2.94889,1569.5,1569.4,2.89621]
[1744797705573,2.94889,1569.5,1569.4,1.27441]
[1744797705774,2.5027,1569.5,1569.4,1.27441]
[1744797706076,4.49172536,1569.6,1569.4,1.27441]
[1744797706077,3.21735536,1569.6,1569.5,1.27439]
[1744797706279,4.84345536,1569.6,1569.5,3.78979]
[1744797706479,6.11776536,1569.6,1569.5,3.78979]
[1744797706673,4.84345536,1569.6,1569.5,3.78979]
[1744797709078,1.63565536,1569.6,1569.5,3.78979]
[1744797710670,0.00955536,1569.6,1569.5,3.78979]
[1744797710870,3.2078,1569.8,1569.7,1.27423]
[1744797711273,4.8464,1569.8,1569.7,1.27423]
[1744797712380,1.6386,1569.8,1569.7,2.91173]
[1744797712674,0.82205536,1569.9,1569.8,1.27414]
[1744797712874,0.00955536,1569.9,1569.8,3.78974]
[1744797713780,1.70385536,1569.9,1569.8,3.78974]
[1744797720880,0.00955536,1569.9,1569.8,3.78974]
[1744797723978,0.00955536,1569.9,1569.8,44.58974]
[1744797725291,1.6772,1570.3,1570.2,1.27382]
[1744797725490,2.4255,1570.3,1570.2,1.27382]
[1744797725787,1.27382,1570.2,1570.1,5.65984]
[1744797725988,6.08902,1570.2,1570.1,5.65984]
[1744797726490,4.8152,1570.2,1570.1,5.65984]
[1744797726680,6.08902,1570.2,1570.1,5.65984]
[1744797727391,6.08902,1570.2,1570.1,5.6599]
[1744797735785,1.2739,1570.1,1570.0,0.00955536]
[1744797735987,1.27406,1569.9,1569.8,40.8]
[1744797736181,3.18538,1569.8,1569.5,9.72030871]
[1744797736388,1.27431,1569.6,1569.5,9.72030871]
[1744797736586,1.27431,1569.6,1569.5,50.52030871]
[1744797736890,1.7636,1569.6,1569.5,50.52030871]
[1744797737294,1.7636,1569.6,1569.5,49.24598871]
[1744797737295,3.03791,1569.6,1569.5,49.24598871]
[1744797737684,3.03791,1569.6,1569.5,50.52037871]
[1744797737984,1.7636,1569.6,1569.5,50.52037871]
[1744797738191,1.7636,1569.6,1569.5,53.93757871]
[1744797738791,5.30977,1569.7,1569.6,1.27431]
[1744797738992,3.86557,1569.7,1569.6,1.27431]
[1744797743492,1.27431,1569.6,1569.5,45.49152]
[1744797743688,3.03181,1569.6,1569.5,45.49152]
[1744797744196,1.7575,1569.6,1569.5,44.2172]
[1744797745495,1.7575,1569.6,1569.5,41.6649]
[1744797745694,4.9653,1569.6,1569.5,40.8]
[1744797746395,1.7575,1569.6,1569.5,40.8]
[1744797746593,0.8277,1569.7,1569.5,42.517]
[1744797746796,2.527,1569.7,1569.6,2.5888]
[1744797748593,3.2078,1570.0,1569.6,2.5888]
[1744797748895,2.4556,1569.9,1569.6,3.4465]
[1744797749097,1.6176,1569.9,1569.7,1.6505]
[1744797749700,5.83292311,1569.9,1569.7,1.6505]
[1744797750797,5.83292311,1569.9,1569.7,6.0345]
[1744797750998,7.10698311,1569.9,1569.8,2.92464]
[1744797752598,5.83292311,1569.9,1569.8,2.92464]
[1744797752804,4.21532311,1569.9,1569.8,2.92464]
[1744797753098,4.21532311,1569.9,1569.8,11.13244]
[1744797753287,1.31550556,1569.9,1569.8,11.13244]
[1744797753699,1.32506092,1570.3,1570.2,1.27382]
[1744797753999,2.59880092,1570.3,1570.2,1.27382]
[1744797754202,2.96606092,1570.3,1570.2,1.27382]
[1744797754501,2.96606092,1570.3,1570.2,3.85252]
[1744797754700,2.96606092,1570.3,1570.2,4.68392]
[1744797755396,1.32506092,1570.3,1570.2,4.68392]
[1744797755905,1.32506092,1570.3,1570.2,9.68392]
[1744797756400,1.32506092,1570.3,1570.2,10.20362694]
[1744797756604,6.28022808,1570.4,1570.3,1.27374]
[1744797756791,6.28022808,1570.8,1570.4,1.27366]
[1744797756992,6.28022808,1570.8,1570.7,1.27341]
[1744797757696,6.28022808,1570.8,1570.7,2.97031]
[1744797757893,6.28022808,1570.8,1570.7,43.77031]
[1744797759696,6.28022808,1570.8,1570.7,51.97811]
[1744797761098,8.35864602,1570.9,1570.8,1.27333]
[1744797761099,0.00955536,1570.9,1570.8,1.27333]
[1744797761404,0.00027329,1570.9,1570.8,7.39433]
[1744797761704,0.00027329,1570.9,1570.8,48.19433]
[1744797768505,1.75467329,1570.9,1570.8,48.19433]
[1744797769297,0.00027329,1570.9,1570.8,48.19433]
[1744797772601,0.00027329,1570.9,1570.8,53.19433]
[1744797773603,1.6605,1571.7,1571.6,1.27269]
[1744797774214,7.9331,1571.7,1571.6,1.27269]
[1744797774507,7.93316,1571.7,1571.6,1.27269]
[1744797775009,6.6605,1571.7,1571.6,1.27269]
[1744797775797,1.6605,1571.7,1571.6,1.27269]
[1744797776699,2.9331,1571.7,1571.6,1.27269]
[1744797777101,1.6605,1571.7,1571.6,1.27269]
[1744797777405,0.00637022,1571.8,1571.7,1.2726]
[1744797777807,1.63687022,1571.8,1571.7,1.2726]
[1744797778109,0.00637022,1571.8,1571.7,5.6506]
[1744797778306,0.00637022,1571.8,1571.7,6.5309]
[1744797778706,0.00637022,1571.8,1571.7,47.3309]
[1744797779014,0.00637022,1571.8,1571.7,54.0646]
[1744797779912,2.2e-07,1571.8,1571.7,54.0646]
[1744797780114,1.6801,1572.4,1572.3,1.27212]
[1744797780312,1.6801,1572.4,1572.3,5.65012]
[1744797780815,3.2078,1572.6,1572.5,1.27196]
[1744797781209,8.2078,1572.6,1572.5,1.27196]
[1744797781403,3.2078,1572.6,1572.5,1.27196]
[1744797781610,0.8577,1572.9,1572.8,1.27171]
[1744797781914,1.27184,1572.7,1572.5,1.27192]
[1744797782117,4.47964,1572.7,1572.6,40.8]
[1744797782311,1.27184,1572.7,1572.6,40.8]
[1744797782712,6.27184,1572.7,1572.6,40.8]
[1744797782922,1.27184,1572.7,1572.6,40.8]
[1744797783120,3.2078,1572.8,1572.6,42.07188]
[1744797783309,4.47954,1572.8,1572.6,40.8]
[1744797783510,1.2718,1572.7,1572.6,42.07183]
[1744797783817,3.2078,1572.8,1572.7,1.2718]
[1744797784021,0.8577,1572.9,1572.8,1.27171]
[1744797784322,0.8577,1572.9,1572.7,4.376]
[1744797784520,0.8577,1572.9,1572.8,1.27171]
[1744797784813,3.2078,1573.4,1573.1,1.27147]
[1744797785015,0.833,1573.3,1573.2,1.27139]
[1744797785220,4.0397,1573.5,1573.1,1.27147]
[1744797785417,1.27126,1573.4,1573.3,1.27128]
[1744797785621,1.27139,1573.2,1573.1,1.28096536]
[1744797785813,3.2078,1573.3,1573.1,1.28100536]
[1744797786008,3.2078,1573.3,1573.2,1.27139]
[1744797786514,3.2078,1573.3,1573.1,5.65694536]
[1744797786714,1.27139,1573.2,1573.1,0.00955536]
[1744797786914,6.27139,1573.2,1573.1,0.00955536]
[1744797788718,3.2078,1573.3,1573.2,1.27139]
[1744797788910,3.2078,1573.3,1573.1,1.28095536]
[1744797789115,3.2078,1573.3,1573.2,1.27139]
[1744797789314,4.47917,1573.3,1573.2,1.27139]
[1744797789721,3.2078,1573.3,1573.2,1.27139]
[1744797790514,3.2078,1573.3,1573.1,0.00955536]
[1744797790515,1.27139,1573.2,1573.1,0.00955536]